Cogmind - Beta 12 @@@ ROGUE MODE // 2023.11.10 @ 00:53:36 Player: FrostySpirit Result: Destroyed by S-10 Pest with Light Assault Rifle Performance ------------- Evolutions (1) 500 Regions Visited (2) 400 Robots Destroyed (15) 75 Value Destroyed (210) 210 Prototype IDs (3) 60 Alien Tech Used (0) 0 Bonus (0) 0 TOTAL SCORE: 1245 Bonus ------- None Cogmind --------- Core Integrity 0/400 Matter 283/300 Energy 100/100 System Corruption 1% Temperature Cool (0) Movement Core (100) Ox1 Location -9/Materials Parts ------- > --- POWER (1) -------- (None) > --- PROPULSION (2) --- (None) > --- UTILITY (4) ------ Small Storage Unit > --- WEAPON (2) ------- (None) > --- INVENTORY (8) ---- Cooled Ion Engine Weight Redist. System Weight Redist. System Weight Redist. System Weight Redist. System Grenade Launcher Datajack Peak State ------------ > --- POWER ------------ Ion Engine > --- PROPULSION ------- Wheel Wheel > --- UTILITY ---------- Small Storage Unit Weight Redist. System Weight Redist. System Structural Scanner > --- WEAPON ----------- Medium Laser Light Assault Rifle > --- INVENTORY -------- Ion Engine Aluminum Leg Aluminum Leg Weight Redist. System Weight Redist. System Small Laser Grenade Launcher Datajack [Rating: 12] Favorites ----------- Power Ion Engine Engine Ion Engine Propulsion Wheel Leg Aluminum Leg Wheel Wheel Hover Unit Hover Unit Utility Small Storage Unit Device Structural Scanner Storage Small Storage Unit Weapon Beam Cannon Energy Gun Medium Laser Energy Cannon Beam Cannon Ballistic Gun Light Assault Rifle Special Melee Weapon Datajack Build | -11 -10 -9 ------- Run | Jun Mat Mat Slots Evolved 2 | . . 2 Power . | . . . Propulsion . | . . . Utility 2 | . . 2 Weapon . | . . . Parts Attached 27 | 6 1 20 Power 5 | 1 . 4 Engine 5 | 1 . 4 Core . | . . . Reactor . | . . . Propulsion 9 | 2 . 7 Treads . | . . . Leg 2 | . . 2 Wheel 4 | 2 . 2 Hover 3 | . . 3 Flight . | . . . Utility 4 | 1 1 2 Device 3 | . 1 2 Storage 1 | 1 . . Processor . | . . . Hackware . | . . . Protection . | . . . Artifact . | . . . Weapon 9 | 2 . 7 Energy Gun 1 | 1 . . Energy Cannon 4 | . . 4 Ballistic Gun 3 | 1 . 2 Ballistic Cannon . | . . . Launcher . | . . . Special Weapon . | . . . Impact Weapon . | . . . Slashing Weapon . | . . . Piercing Weapon . | . . . Special Melee Weapon 1 | . . 1 Unidentified Prototypes 3 | . . 3 Parts Lost 12 | . . 12 Power 1 | . . 1 Propulsion 6 | . . 6 Utility 2 | . . 2 Weapon 3 | . . 3 Highest Loss Streak 11 | . . 11 To Critical Strikes 1 | . . 1 Average Slot Usage (%) 79 | . 96 70 Engine 10 | . 14 9 Leg 4 | . . 6 Wheel 15 | . 28 9 Hover 1 | . . 2 Device 13 | . 10 14 Storage 12 | . 14 11 Energy Gun 5 | . 14 1 Energy Cannon 8 | . . 12 Ballistic Gun 6 | . 14 2 Naked Turns . | . . . Heaviest Build 17 | 13 14 17 Greatest Support 26 | 20 20 26 Greatest Overweight (x) 2 | . . 2 Average Overweight (x) . | . . . Largest Inventory Capacity 8 | 8 8 8 Average Capacity 7 | 7 8 8 Most Carried 8 | 6 8 8 Average Carried 7 | 2 7 7 Final Capacity 8 | 8 8 8 Final Carried 8 | 6 8 7 Class Distribution -------------------- 100% | Mutant Dominant Class ---------------- Mutant | -10/Materials Mutant | -9/Materials Resources | -11 -10 -9 ----------- Run | Jun Mat Mat Matter Collected 428 | 252 29 147 Remotely . | . . . Salvage Created 377 | . 39 338 Parts 28 | . 3 25 Haulers Intercepted 2 | . . 2 Recyclers Shooed . | . . . Parts Field Recycled . | . . . Retrieved Matter . | . . . Parts Self-Destructed . | . . . Prevented . | . . . Kills | -11 -10 -9 ------- Run | Jun Mat Mat Combat Hostiles Destroyed 12 | . 3 9 Guns 3 | . 3 . Cannons 9 | . . 9 Classes Destroyed 5 | . 1 4 Worker 1 | . . 1 Hauler 2 | . . 2 Swarmer 9 | . 3 6 Grunt 2 | . . 2 Duelist 1 | . . 1 Best Kill Streak 6 | . 3 6 Combat Bots Only 6 | . 3 6 Max Kills in Single Turn 1 | . 1 1 Gunslinging . | . . . Exploded . | . . . Melee . | . . . Uniques/NPCs Destroyed . | . . . Combat | -11 -10 -9 -------- Run | Jun Mat Mat Damage Taken 1664 | . 235 1429 Core 484 | . 78 406 Absorbed by Shields . | . . . Core Remaining (%) 84 | 100 68 . Volleys Fired 36 | . 14 22 Largest 2 | . 2 2 Hottest 120 | . 70 120 Shots Fired 72 | . 28 44 Gun 28 | . 28 . Cannon 44 | . . 44 Launcher . | . . . Special . | . . . Kinetic 14 | . 14 . Thermal 58 | . 14 44 Explosive . | . . . Electromagnetic . | . . . Robot Hit Streak 7 | . 7 5 Robot Miss Streak 7 | . 7 3 Penetration Max . | . . . Secondary Targets 1 | . 1 . Max Gunslinging Chain 1 | . 1 . Shots Hit Robots 37 | . 13 24 Core Hits 16 | . 3 13 Critical Kills . | . . . Critical Parts Destroyed . | . . . Critical Strikes 2 | . 2 . Burn 2 | . 2 . Melee Attacks 2 | . . 2 Impact . | . . . Slashing . | . . . Piercing . | . . . Sneak Attacks 2 | . . 2 Combat Hostiles . | . . . Follow-up Attacks . | . . . Damage Inflicted 623 | . 152 471 Guns 152 | . 152 . Cannons 455 | . . 455 Explosions . | . . . Melee . | . . . Ramming 16 | . . 16 Kinetic 40 | . 40 . Thermal 567 | . 112 455 Explosive . | . . . Electromagnetic . | . . . Impact . | . . . Slashing . | . . . Piercing . | . . . Highest Corruption 1 | . . 1 Average Corruption 1 | . . 1 Corruption Purged . | . . . Corruption Blocked . | . . . Effects 5 | . . 5 Message Errors 1 | . . 1 Matter Fused 2 | . . 2 Heat Flow Errors 1 | . . 1 Energy Discharges 1 | . . 1 Overload Shots . | . . . Overflow Damage . | . . . Projectiles . | . . . Explosions . | . . . Melee . | . . . Knockbacks . | . . . Impact . | . . . Kinetic . | . . . Secondary . | . . . Self-Inflicted Damage 8 | . . 8 Shots . | . . . Rammed 2 | . . 2 Targets Rammed 2 | . . 2 Kicked . | . . . Crushed . | . . . Highest Temperature 546 | . 130 546 Average Temperature 178 | . 68 220 Received Heat Transfer 366 | . . 366 Effects 8 | . . 8 Shutdowns 3 | . . 3 Interference 2 | . . 2 Damage (minor) 2 | . . 2 Damage (major) 1 | . . 1 Siege Activations . | . . . Robots Corrupted . | . . . Combat Hostiles . | . . . Parts Fried . | . . . Impact Corruptions . | . . . Robots Melted . | . . . Combat Hostiles . | . . . Parts Melted 3 | . 2 1 Heat Transferred 1443 | . 481 962 Parts Sabotaged . | . . . Parts Stolen . | . . . Parts Stripped . | . . . Power Chain Reactions . | . . . Missiles Intercepted . | . . . Alert | -11 -10 -9 ------- Run | Jun Mat Mat Peak Influence 311 | . 188 311 Initial 79 | . . 79 Average 137 | . 88 189 Maximum Alert Level 1 | . . 1 Low Security (%) 64 | 100 100 38 Level 1 35 | . . 61 Level 2 . | . . . Level 3 . | . . . Level 4 . | . . . Level 5 . | . . . High Security . | . . . Max Security . | . . . Squads Dispatched 3 | . 1 2 Investigation 2 | . . 2 Extermination . | . . . Reinforcement 1 | . 1 . Assault . | . . . Garrison . | . . . Intercept . | . . . Searches Triggered . | . . . Construction Impeded . | . . . Haulers Reinforced . | . . . Active Scanning Responses . | . . . Cargo Convoy Interrupts . | . . . Stealth | -11 -10 -9 --------- Run | Jun Mat Mat Distress Signals 2 | . 1 1 Communications Jammed . | . . . Distress Signals . | . . . Times Spotted 30 | . 9 21 Peak Tracking Total 10 | . 5 10 Tactical Retreats 3 | . 2 1 Traps | -11 -10 -9 ------- Run | Jun Mat Mat Traps Triggered . | . . . Indirectly . | . . . Trap Hack Attempts . | . . . Triggered . | . . . Disarmed . | . . . Reprogrammed . | . . . Reused . | . . . Traps Extracted . | . . . Installed . | . . . Triggered . | . . . Machines | -11 -10 -9 ---------- Run | Jun Mat Mat Machines Disabled . | . . . Max in Single Turn . | . . . Machines Repaired . | . . . Machines Sabotaged . | . . . Overloaded Fab Kills . | . . . Hacking | -11 -10 -9 --------- Run | Jun Mat Mat Machines Accessed 7 | . 4 3 Terminals 7 | . 4 3 Fabricators . | . . . Repair Stations . | . . . Recycling Units . | . . . Scanalyzers . | . . . Garrison Access . | . . . Total Hacks 30 | . 18 12 Successful 13 | . 10 3 Failed 17 | . 8 9 Catastrophic 1 | . 1 . Database Lockouts . | . . . Manual 25 | . 16 9 Terminals 30 | . 18 12 Fabricators . | . . . Repair Stations . | . . . Recycling Units . | . . . Scanalyzers . | . . . Garrison Access . | . . . Terminal Hacks 6 | . 4 2 Level Access Points 1 | . 1 . Branch Access Points 2 | . 1 1 Recall Investigation 1 | . . 1 Zone Layout 2 | . 2 . Fabricator Hacks . | . . . Repair Station Hacks . | . . . Recycling Unit Hacks . | . . . Scanalyzer . | . . . Garrison Access Hacks . | . . . Unauthorized Hacks 7 | . 6 1 Terminals 7 | . 6 1 Track 4 | . 4 . Assimilate 3 | . 2 1 Fabricators . | . . . Repair Stations . | . . . Recycling Units . | . . . Scanalyzers . | . . . Garrison Access . | . . . Data Cores Recovered . | . . . Used . | . . . Hacking Detections 6 | . 3 3 Full Trace Events 2 | . . 2 Feedback Events 1 | . . 1 Corruption 1 | . . 1 Feedback Blocked . | . . . Robot Schematics Acquired . | . . . Robots Built . | . . . Authchips . | . . . Time . | . . . Total Robot Build Rating . | . . . Part Schematics Acquired . | . . . Parts Built . | . . . Authchips . | . . . Time . | . . . Total Part Build Rating . | . . . Parts Repaired . | . . . Time . | . . . Parts Recycled . | . . . Recycled Matter . | . . . Retrieved Matter . | . . . Retrieved Components . | . . . Parts Scanalyzed . | . . . Part Schematics Acquired . | . . . Parts Damaged . | . . . Bothacking | -11 -10 -9 ------------ Run | Jun Mat Mat Used RIF Installer . | . . . Robots Hacked 1 | . . 1 Non-combat 1 | . . 1 Combat . | . . . Robot Hacks Applied 1 | . . 1 no_distress 1 | . . 1 Relay Couplers Released . | . . . Fabnet Peak Effective % . | . . . Robots Rewired . | . . . Allies Hacked . | . . . Hacks Repelled . | . . . Allies | -11 -10 -9 -------- Run | Jun Mat Mat Total Allies . | . . . Largest Group . | . . . Highest-Rated Group . | . . . Highest-Rated Ally . | . . . Total Orders . | . . . Ally Attacks . | . . . Total Damage . | . . . Kills . | . . . Allies Corrupted . | . . . Allies Melted . | . . . Intel | -11 -10 -9 ------- Run | Jun Mat Mat Robot Analysis Total . | . . . Derelict Logs Recovered . | . . . Drone Launches . | . . . Drone Recoveries . | . . . Exploration | -11 -10 -9 ------------- Run | Jun Mat Mat Turns Passed 609 | 65 193 351 Spaces Moved 503 | 60 184 259 Core 23 | 4 . 19 Treads . | . . . Legs 53 | . . 53 Wheels 358 | 56 184 118 Hover 69 | . . 69 Flight . | . . . Fastest Speed 50 | 50 80 56 Average Speed 85 | 78 80 91 Slowest Speed 190 | 80 80 190 Overloaded Moves . | . . . Propulsion Burnouts . | . . . Robots Hopped . | . . . Cave-ins Triggered . | . . . Exploration Rate (%) 19 | 4 28 25 Regions Visited 2 Branch Regions . Pre-discovered Areas . | . . . Known Exits Taken 1 | . 1 . Unknown Exits Taken 1 | 1 . . Scrap Searched . | . . . Spaces Dug . | . . . Terrain Destroyed . | . . . Melee . | . . . Projectile . | . . . AOE . | . . . Terrain Rammed . | . . . Walls Destroyed . | . . . Machines Disabled . | . . . Actions | -11 -10 -9 --------- Run | Jun Mat Mat Total 606 | 74 203 329 Wait 10 | 3 3 4 Move 501 | 59 183 259 Hop . | . . . Pick Up 12 | 6 2 4 Fast Attach 19 | 6 1 12 Attach 1 | . . 1 Detach 1 | . . 1 Swap 7 | . . 7 Drop 15 | . . 15 Fire 36 | . 14 22 Melee 2 | . . 2 Ram 2 | . . 2 Kick . | . . . Crush . | . . . Escape Stasis . | . . . Rewire . | . . . Trap . | . . . Miscellaneous . | . . . Route ------- -11/Junkyard -10/Materials (discovered 5 exits: *Mat x3 / Min x2) -9/Materials (discovered 2 exits: Min x2) History --------- Turn | Location | Event 27 | -11/Junkyard | Discovered new exit (range 13) 66 | -11/Junkyard | Entered Materials 83 | -10/Materials | Identified exit to Materials 83 | -10/Materials | Identified exit to Mines 259 | -10/Materials | Entered another Materials area 259 | -9/Materials | Evolved 2 slots: Utility x2 329 | -9/Materials | Build established: Mutant 573 | -9/Materials | Core integrity fell below 50% 582 | -9/Materials | Identified exit to Mines 594 | -9/Materials | Core integrity fell below 20% 610 | -9/Materials | Destroyed by S-10 Pest with Light Assault Rifle Last Messages --------------- 00539_ Slammed into S-10 Pest. 00543_ Hover Unit destroyed. 00548_ M-13 Machinist repairs Lgt. Ion Engine. 00554_ Ion Engine destroyed. 00558_ K-01 Serf cleans the Fusion Modulator. 00559_ Critical hit (Destroy). 00559_ Imp. Assault Rifle destroyed. 00562_ K-01 Serf cleans the Fusion Modulator. 00580_ Hover Unit destroyed. 00582_ Connecting with Terminal... >>Access(Branch) Found 2 branch access points: (12,12) Mines (87,86) Mines Map updated. 00582_ ALERT: Suspicious activity at Terminal M001. Dispatching Investigation squad. 00590_ Critical hit (Burn: +37). 00596_ Imp. Hover Unit destroyed. 00602_ Slammed into T-07 Excavator. Map ----- +----------------------------------------------------+ | [!!**% ???????????????????????????? | | =*[ ???????????????????????????? | | ####### ##########???????????????????????????????? | | ####### #????????????????????????????????????????? | | ??????# #????????????????????????????????????????? | | ??????# #????????????????????????????????????????? | | ??????#/#########????????????????????????????????? | | ??????# #????????????????????????????????? | | ??????# #????????????????????????????????? | | ####### """ """ #????? ??????????????????????????? | | # """ """ #????? ??????????????????????????? | | / """ """ #????? ??????????????????????????? | | # #????? ??????????????????????????? | | ##### # #???? ??????????????????????????? | | ????#+# #???? ??????????????????????????? | | ??????###########???? ??????????????????????????? | | ????????????????????? #??????????????????????????? | | ????????????????????? #??????????????????????????? | | ????????????????????? #??????????????????????????? | | ???????????????????##+########???????????????????? | | ???????????? #?????# #???????????????????? | | ??????????? ####### #???????????????????? | | ###+######+### # #???????????????????? | | # #???????????????????? | | Y s #???????????????????? | | # ] @ = #???????????????????? | | #####+######## # #???????????????????? | | #????????????####### #???????????????????? | | #??????????????????#####+#####???????????????????? | | #????????????????????????????????????????????????? | | #????????????????????????????????????????????????? | | #????????????????????????????????????????????????? | | #????????????????????????????????????????????????? | | #????????????????????????????????????????????????? | | #????????????????????????????????????????????????? | | #????????????????????????????????????????????????? | | #????????????????????????????????????????????????? | | ????????????????????????????????????????????????? | | ????????????????????????????????????????????????? | | ?????????????????????????????????????????????????? | | ?????????????????????????????????????????????????? | | ?????????????????????????????????????????????????? | | ?????????????????????????????????????????????????? | | ?????????????????????????????????????????????????? | | ????????????????????????????????????????????>????? | | ?????????????????????????????????????????????????? | | ?????????????????????????????????????????????????? | | ?????????????????????????????????????????????????? | | ?????????????????????????????????????????????????? | | ?????????????????????????????????????????????????? | +----------------------------------------------------+ Best States ------------- Heat Dissipation 28 Energy Generation 14 Energy Capacity 280 Matter Stores 300 Matter Capacity 300 Sight Range 16 Terrain Scan Density 10 Evasion (%) 55 Item Schematics ----------------- None Robot Schematics ------------------ None Fabricated ------------ Nothing Alien Tech Used ----------------- None Achievements -------------- None Challenges ------------ None Game ------ Seed DisruptorRiotRedirector Manual? 0 Play Time 00:12:55 Cumulative 32.1 hours Start 2023.11.10 @ 00:40:59 End 2023.11.10 @ 00:53:36 Sessions 1 Manual Loads 0 Difficulty Rogue Special Mode None Game No. 53 Rogue 53 Adventurer 0 Explorer 0 Win Type - Total 0 Types 0/0/0/0/0/0/0/0/0 Lore% 24 Gallery% 38 Achievement% 26 Wizard Run 0 Options --------- ASCII 0 Keyboard 1 Movement Numpad Keybinds 0 Fullscreen 1 Font 18/TerminusBold Map View 76x50 Tactical HUD 1 Map Filters NONE Filters NONE Steam 1 RUN: 449e6e79-9553-4451-9520-838af8ca508a